[Event "8th Holuj-Radzikowska Rapid 2018"]
[Site "Wroclaw"]
[Date "2018.12.10"]
[Round "1"]
[White "Socko, Monika"]
[Black "Skripchenko, Almira"]
[Result "1-0"]
[ECO "C41"]
[WhiteElo "2458"]
[BlackElo "2408"]
[Annotator "ChessBase"]
[PlyCount "149"]
[EventDate "2018.11.26"]
[EventType "schev"]
[EventCountry "POL"]
[SourceTitle "playchess.com"]
[Source "ChessBase"]
[SourceQuality "1"]
[WhiteTeam "Poland"]
[BlackTeam "World"]
[WhiteTeamCountry "POL"]
[TimeControl "900+10"]

1. e4 {[%emt 0:00:00]} d6 {[%emt 0:00:04]} 2. d4 {[%emt 0:00:00]} Nf6 {[%emt 0:00:01]} 3. Nc3 {[%emt 0:00:03]} e5 {[%emt 0:00:03]} 4. Nf3 {[%emt 0:00:02]} Nbd7 {[%emt 0:00:02]} 5. Bc4 {[%emt 0:00:03]} Be7 {[%emt 0:00:03]} 6. a4 {[%emt 0:00:01]} O-O {[%emt 0:00:14]} 7. a5 {[%emt 0:00:02]} a6 {[%emt 0:00:06]} 8. O-O {[%emt 0:00:04]} h6 {[%emt 0:00:11]} 9. Re1 {[%emt 0:00:16]} exd4 {[%emt 0:00:26]} 10. Qxd4 {[%emt 0:00:16]} Ne5 {[%emt 0:00:09]} 11. Be2 {[%emt 0:00:52]} Be6 {[%emt 0:03:08]} 12. Bf4 {[%emt 0:00:50]} Nc6 {[%emt 0:00:25]} 13. Qd2 {[%emt 0:00:36]} Re8 {[%emt 0:00:14]} 14. h3 {[%emt 0:00:29]} Bf8 {[%emt 0:00:16]} 15. Bf1 {[%emt 0:00:02]} Nd7 {[%emt 0:02:02]} 16. Nd5 {[%emt 0:00:26]} Nde5 {[%emt 0:00:05]} 17. Ra3 {[%emt 0:02:39]} Ng6 {[%emt 0:00:52]} 18. Bg3 {[%emt 0:00:40]} Qd7 {[%emt 0:00:49]} 19. c4 {[%emt 0:01:04]} f5 {[%emt 0:01:21]} 20. b4 {[%emt 0:00:19]} Nce5 {[%emt 0:02:27]} 21. exf5 {[%emt 0:00:50]} Bxf5 {[%emt 0:00:06]} 22. Nd4 {[%emt 0:00:10]} Rec8 {[%emt 0:02:30]} 23. f4 {[%emt 0:02:01]} Nc6 {[%emt 0:00:05]} 24. Nxf5 {[%emt 0:01:40]} Qxf5 {[%emt 0:00:01]} 25. Be2 {[%emt 0:00:56]} h5 {[%emt 0:01:07]} 26. Ne3 {[%emt 0:01:25]} Qe4 {[%emt 0:00:31]} 27. Bxh5 {[%emt 0:00:10]} Nge7 {[%emt 0:01:20]} 28. Bf3 {[%emt 0:00:22]} Qg6 {[%emt 0:00:11]} 29. Bf2 {[%emt 0:00:13]} Qf6 {[%emt 0:00:22]} 30. Nd5 {[%emt 0:00:24]} Nxd5 {[%emt 0:00:20]} 31. Bxd5+ {[%emt 0:00:01]} Kh8 {[%emt 0:00:01]} 32. Rg3 {[%emt 0:00:12]} Re8 {[%emt 0:00:15]} 33. Rg5 {[%emt 0:00:18]} Rxe1+ {[%emt 0:00:13]} 34. Qxe1 {[%emt 0:00:02]} g6 {[%emt 0:00:03]} 35. Qe4 {[%emt 0:00:22]} Kh7 {[%emt 0:00:13]} 36. Bxc6 {[%emt 0:01:06]} bxc6 {[%emt 0:00:01]} 37. Bd4 {[%emt 0:00:01]} Re8 {[%emt 0:00:37]} 38. Qxe8 {[%emt 0:00:29]} Qxd4+ {[%emt 0:00:01]} 39. Kh1 {[%emt 0:00:01]} Qf6 {[%emt 0:00:06]} 40. Qe4 {[%emt 0:00:39]} Bg7 {[%emt 0:00:09]} 41. Kh2 {[%emt 0:00:06]} Bh6 {[%emt 0:00:18]} 42. Rg4 {[%emt 0:00:04]} d5 {[%emt 0:00:09]} 43. cxd5 {[%emt 0:00:22]} cxd5 {[%emt 0:00:00]} 44. Qxd5 {[%emt 0:00:22]} Bxf4+ {[%emt 0:00:04]} 45. g3 {[%emt 0:00:00]} Bd6 {[%emt 0:00:02]} 46. Qd2 {[%emt 0:00:08]} Qe6 {[%emt 0:00:37]} 47. Rh4+ {[%emt 0:00:07]} Kg8 {[%emt 0:00:01]} 48. Qc2 {[%emt 0:00:13]} Qf6 {[%emt 0:00:22]} 49. Rg4 {[%emt 0:00:12]} Kh7 {[%emt 0:00:10]} 50. h4 {[%emt 0:00:06]} Qe6 {[%emt 0:00:02]} 51. Qe4 {[%emt 0:00:10]} Qf6 {[%emt 0:00:17]} 52. Qe2 {[%emt 0:00:12]} Qf5 {[%emt 0:00:09]} 53. Rg5 {[%emt 0:00:07]} Qf6 {[%emt 0:00:09]} 54. Qc2 {[%emt 0:00:13]} Kh6 {[%emt 0:00:15]} 55. Rg4 {[%emt 0:00:09]} Qe6 {[%emt 0:00:09]} 56. Qd2+ {[%emt 0:00:08]} Kh7 {[%emt 0:00:01]} 57. Rd4 {[%emt 0:00:12]} Qe5 {[%emt 0:00:08]} 58. Rd3 {[%emt 0:00:02]} Qe4 {[%emt 0:00:05]} 59. Rd4 {[%emt 0:00:12]} Qf3 {[%emt 0:00:06]} 60. Qg2 {[%emt 0:00:07]} Qe3 {[%emt 0:00:10]} 61. Rg4 {[%emt 0:00:07]} Qe6 {[%emt 0:00:26]} 62. Qe4 {[%emt 0:00:07]} Qf7 {[%emt 0:00:10]} 63. Kg2 {[%emt 0:00:11]} Qa2+ {[%emt 0:00:04]} 64. Kh3 {[%emt 0:00:01]} Qf7 {[%emt 0:00:01]} 65. Qd3 {[%emt 0:00:09]} Kh6 {[%emt 0:00:10]} 66. b5 {[%emt 0:00:35]} axb5 {[%emt 0:00:10]} 67. a6 {[%emt 0:00:01]} Bc5 {[%emt 0:00:18]} 68. Qxb5 {[%emt 0:00:02]} Qf2 {[%emt 0:00:14]} 69. Qd3 {[%emt 0:00:13]} Qf6 {[%emt 0:00:14]} 70. Rf4 {[%emt 0:00:19]} Qc6 {[%emt 0:00:08]} 71. Rf3 {[%emt 0:00:09]} Bb6 {[%emt 0:00:06]} 72. g4 {[%emt 0:00:07]} Qa4 {[%emt 0:00:18]} 73. Qd2+ {[%emt 0:00:11]} Kg7 {[%emt 0:00:06]} 74. Qc3+ {[%emt 0:00:12]} Kh7 {[%emt 0:00:20]} 75. Rf7+ 1-0

[Event "8th Holuj-Radzikowska Rapid 2018"]
[Site "Wroclaw"]
[Date "2018.12.10"]
[Round "1"]
[White "Zawadzka, Jolanta"]
[Black "Javakhishvili, Lela"]
[Result "1/2-1/2"]
[ECO "B36"]
[WhiteElo "2423"]
[BlackElo "2464"]
[Annotator "ChessBase"]
[PlyCount "107"]
[EventDate "2018.11.26"]
[EventType "schev"]
[EventCountry "POL"]
[SourceTitle "playchess.com"]
[Source "ChessBase"]
[SourceQuality "1"]
[WhiteTeam "Poland"]
[BlackTeam "World"]
[WhiteTeamCountry "POL"]
[TimeControl "900+10"]

1. e4 {[%emt 0:00:00]} c5 {[%emt 0:00:00]} 2. Nf3 {[%emt 0:00:00]} Nc6 {[%emt 0:00:00]} 3. d4 {[%emt 0:00:00]} cxd4 {[%emt 0:00:00]} 4. Nxd4 {[%emt 0:00:00]} g6 {[%emt 0:00:00]} 5. c4 {[%emt 0:00:00]} d6 {[%emt 0:00:01]} 6. Nc3 {[%emt 0:00:02]} Nf6 {[%emt 0:00:09]} 7. Be2 {[%emt 0:00:06]} Nxd4 {[%emt 0:00:02]} 8. Qxd4 {[%emt 0:00:02]} Bg7 {[%emt 0:00:02]} 9. O-O {[%emt 0:00:22]} O-O {[%emt 0:00:02]} 10. Qd3 {[%emt 0:00:02]} Nd7 {[%emt 0:00:02]} 11. Bd2 {[%emt 0:01:00]} a5 {[%emt 0:02:05]} 12. b3 {[%emt 0:00:18]} Nc5 {[%emt 0:00:16]} 13. Qe3 {[%emt 0:00:09]} Ne6 {[%emt 0:00:23]} 14. Rac1 {[%emt 0:00:15]} Nd4 {[%emt 0:00:11]} 15. Rfd1 {[%emt 0:01:39]} e5 {[%emt 0:03:28]} 16. Nb5 {[%emt 0:01:50]} f5 {[%emt 0:00:02]} 17. Nxd4 {[%emt 0:01:19]} exd4 {[%emt 0:00:04]} 18. Qd3 {[%emt 0:00:02]} Qh4 {[%emt 0:03:27]} 19. Bf3 {[%emt 0:00:44]} f4 {[%emt 0:00:15]} 20. c5 {[%emt 0:00:54]} g5 {[%emt 0:00:13]} 21. g3 {[%emt 0:00:37]} Qh6 {[%emt 0:00:05]} 22. cxd6 {[%emt 0:00:17]} Qxd6 {[%emt 0:00:09]} 23. gxf4 {[%emt 0:01:52]} gxf4 {[%emt 0:01:12]} 24. Kh1 {[%emt 0:00:01]} Be6 {[%emt 0:00:42]} 25. Rg1 {[%emt 0:01:02]} Rf7 {[%emt 0:00:16]} 26. Rg5 {[%emt 0:01:31]} a4 {[%emt 0:01:50]} 27. e5 {[%emt 0:00:07]} Qd7 {[%emt 0:00:01]} 28. Rcg1 {[%emt 0:01:28]} Kh8 29. bxa4 {[%emt 0:00:44]} Rxa4 {[%emt 0:02:43]} 30. Be4 {[%emt 0:01:34]} Rxa2 {[%emt 0:00:50]} 31. f3 {[%emt 0:00:48]} Bd5 {[%emt 0:01:00]} 32. Bxd5 {[%emt 0:01:15]} Qxd5 {[%emt 0:00:01]} 33. Rh5 {[%emt 0:00:14]} h6 {[%emt 0:00:12]} 34. Bc1 {[%emt 0:00:15]} Ra6 {[%emt 0:00:23]} 35. Bb2 {[%emt 0:00:03]} Re6 {[%emt 0:00:14]} 36. Bxd4 {[%emt 0:00:05]} Rd7 {[%emt 0:00:03]} 37. Rd1 {[%emt 0:00:03]} Kg8 {[%emt 0:00:14]} 38. Kg2 {[%emt 0:00:05]} Rxe5 {[%emt 0:00:23]} 39. Bxe5 {[%emt 0:00:31]} Qxd3 {[%emt 0:00:01]} 40. Rxd3 {[%emt 0:00:01]} Rxd3 {[%emt 0:00:01]} 41. Bxf4 {[%emt 0:00:08]} Kh7 {[%emt 0:00:06]} 42. Rb5 {[%emt 0:00:01]} Rd7 {[%emt 0:00:03]} 43. Kg3 {[%emt 0:00:08]} Kg6 {[%emt 0:00:01]} 44. h4 {[%emt 0:00:03]} Bd4 {[%emt 0:00:24]} 45. h5+ {[%emt 0:00:03]} Kh7 {[%emt 0:00:10]} 46. Kg4 {[%emt 0:00:04]} b6 {[%emt 0:00:09]} 47. Be5 {[%emt 0:00:31]} Bxe5 {[%emt 0:00:18]} 48. Rxe5 {[%emt 0:00:01]} Rb7 {[%emt 0:00:15]} 49. Rb5 {[%emt 0:00:01]} Kg7 {[%emt 0:00:03]} 50. f4 {[%emt 0:00:01]} Kf6 {[%emt 0:00:03]} 51. Rf5+ {[%emt 0:00:02]} Ke6 {[%emt 0:00:05]} 52. Rb5 {[%emt 0:00:03]} Kf6 {[%emt 0:00:24]} 53. Rf5+ {[%emt 0:00:02]} Ke6 {[%emt 0:00:01]} 54. Rb5 {[%emt 0:00:02] Ke5} 1/2-1/2

[Event "8th Holuj-Radzikowska Rapid 2018"]
[Site "Wroclaw"]
[Date "2018.12.10"]
[Round "2"]
[White "Abdumalik, Zhansaya"]
[Black "Socko, Monika"]
[Result "1/2-1/2"]
[ECO "B17"]
[WhiteElo "2470"]
[BlackElo "2458"]
[Annotator "ChessBase"]
[PlyCount "105"]
[EventDate "2018.11.26"]
[EventType "schev"]
[EventCountry "POL"]
[SourceTitle "playchess.com"]
[Source "ChessBase"]
[SourceQuality "1"]
[WhiteTeam "World"]
[BlackTeam "Poland"]
[BlackTeamCountry "POL"]
[TimeControl "900+10"]

1. e4 {[%emt 0:00:00]} c6 {[%emt 0:00:00]} 2. d4 {[%emt 0:00:00]} d5 {[%emt 0:00:00]} 3. Nd2 {[%emt 0:00:00]} dxe4 {[%emt 0:00:00]} 4. Nxe4 {[%emt 0:00:00]} Nd7 {[%emt 0:00:00]} 5. Nf3 {[%emt 0:00:05]} Ngf6 {[%emt 0:00:00]} 6. Ng3 {[%emt 0:00:01]} e6 {[%emt 0:00:01]} 7. Bd3 {[%emt 0:00:11]} c5 {[%emt 0:00:02]} 8. c3 {[%emt 0:00:45]} Be7 {[%emt 0:00:23]} 9. O-O {[%emt 0:00:04]} Qc7 {[%emt 0:00:14]} 10. Qe2 {[%emt 0:00:09]} O-O {[%emt 0:00:20]} 11. Re1 {[%emt 0:01:12]} b6 {[%emt 0:00:41]} 12. Ne5 {[%emt 0:01:48]} Bb7 {[%emt 0:00:51]} 13. h4 {[%emt 0:00:46]} Rad8 {[%emt 0:00:55]} 14. h5 {[%emt 0:00:37]} cxd4 {[%emt 0:02:25]} 15. cxd4 {[%emt 0:00:08]} Nxe5 {[%emt 0:00:17]} 16. dxe5 {[%emt 0:00:39]} Qc6 {[%emt 0:00:25]} 17. f3 {[%emt 0:03:19]} Bc5+ {[%emt 0:00:03]} 18. Be3 {[%emt 0:01:57]} Ng4 {[%emt 0:03:42]} 19. Be4 {[%emt 0:00:12]} Bxe3+ {[%emt 0:00:26]} 20. Qxe3 {[%emt 0:00:01]} Nxe3 {[%emt 0:00:09]} 21. Bxc6 {[%emt 0:00:01]} Bxc6 {[%emt 0:00:02]} 22. Rxe3 {[%emt 0:00:01]} Rd2 {[%emt 0:00:02]} 23. Re2 {[%emt 0:00:30]} Rfd8 {[%emt 0:00:11]} 24. Rxd2 {[%emt 0:00:42]} Rxd2 {[%emt 0:00:01]} 25. Rc1 {[%emt 0:00:01]} Be8 {[%emt 0:01:31]} 26. Ne4 {[%emt 0:02:05]} Rd8 {[%emt 0:00:02]} 27. Rc7 {[%emt 0:00:19]} a5 {[%emt 0:00:23]} 28. Nd6 {[%emt 0:00:13]} f6 {[%emt 0:01:43]} 29. Nxe8 {[%emt 0:00:02]} Rxe8 {[%emt 0:00:01]} 30. Rb7 {[%emt 0:00:01]} fxe5 {[%emt 0:00:23]} 31. Rxb6 {[%emt 0:00:02]} Kf7 {[%emt 0:00:01]} 32. Rb5 {[%emt 0:00:30]} a4 {[%emt 0:00:00]} 33. Rxe5 {[%emt 0:00:05]} Rb8 {[%emt 0:00:02]} 34. Re2 {[%emt 0:00:24]} Kf6 {[%emt 0:00:08]} 35. Kf2 {[%emt 0:00:03]} Rb4 {[%emt 0:00:44]} 36. g4 {[%emt 0:00:34]} g6 {[%emt 0:00:02]} 37. hxg6 {[%emt 0:00:21]} hxg6 {[%emt 0:00:01]} 38. Kg3 {[%emt 0:00:04]} g5 {[%emt 0:00:15]} 39. Kf2 {[%emt 0:00:30]} e5 {[%emt 0:00:32]} 40. Ke3 {[%emt 0:00:08]} Ke6 {[%emt 0:00:01]} 41. Rd2 {[%emt 0:00:06]} Rb8 {[%emt 0:00:29]} 42. a3 {[%emt 0:00:46]} Rc8 {[%emt 0:00:48]} 43. Kd3 {[%emt 0:00:49]} Rc1 {[%emt 0:00:36]} 44. Rc2 {[%emt 0:00:19]} Rf1 {[%emt 0:00:04]} 45. Ke3 {[%emt 0:00:13]} Re1+ {[%emt 0:00:16]} 46. Re2 {[%emt 0:00:32]} Rd1 {[%emt 0:00:06]} 47. Ke4 {[%emt 0:00:05]} Rd4+ {[%emt 0:00:02]} 48. Ke3 {[%emt 0:00:01]} Rd1 {[%emt 0:00:01]} 49. Rc2 {[%emt 0:00:01]} Re1+ {[%emt 0:00:01]} 50. Kf2 {[%emt 0:00:11]} Rb1 {[%emt 0:00:27]} 51. Rd2 {[%emt 0:00:14]} Ke7 {[%emt 0:00:12]} 52. Ke3 {[%emt 0:00:19]} Ke6 {[%emt 0:00:01]} 53. Rc2 {[%emt 0:00:15]} 1/2-1/2

[Event "8th Holuj-Radzikowska Rapid 2018"]
[Site "Wroclaw"]
[Date "2018.12.10"]
[Round "2"]
[White "Warakomska, Anna"]
[Black "Skripchenko, Almira"]
[Result "1-0"]
[ECO "C55"]
[WhiteElo "2233"]
[BlackElo "2408"]
[Annotator "ChessBase"]
[PlyCount "109"]
[EventDate "2018.11.26"]
[EventType "schev"]
[EventCountry "POL"]
[SourceTitle "playchess.com"]
[Source "ChessBase"]
[SourceQuality "1"]
[WhiteTeam "Poland"]
[BlackTeam "World"]
[WhiteTeamCountry "POL"]
[TimeControl "900+10"]

1. e4 {[%emt 0:00:00]} e5 {[%emt 0:00:00]} 2. Nf3 {[%emt 0:00:00]} Nc6 {[%emt 0:00:00]} 3. Bc4 {[%emt 0:00:00]} Nf6 {[%emt 0:00:00]} 4. d3 {[%emt 0:00:00]} Be7 {[%emt 0:00:00]} 5. O-O {[%emt 0:00:00]} O-O {[%emt 0:00:00]} 6. Re1 {[%emt 0:00:01]} d6 {[%emt 0:00:01]} 7. a4 {[%emt 0:00:02]} Na5 {[%emt 0:00:14]} 8. Ba2 {[%emt 0:00:01]} c5 {[%emt 0:00:01]} 9. Na3 {[%emt 0:02:22]} Nc6 {[%emt 0:00:08]} 10. c3 {[%emt 0:00:18]} a6 {[%emt 0:01:00]} 11. Nc2 {[%emt 0:01:27]} Bg4 {[%emt 0:01:39]} 12. Ne3 {[%emt 0:04:34]} Bh5 {[%emt 0:00:02]} 13. Bd2 {[%emt 0:00:49]} Nd7 {[%emt 0:01:01]} 14. Nf5 {[%emt 0:00:53]} Bg6 {[%emt 0:00:27]} 15. Ne3 {[%emt 0:01:03]} Kh8 {[%emt 0:01:55]} 16. b4 {[%emt 0:00:53]} cxb4 {[%emt 0:00:15]} 17. cxb4 {[%emt 0:00:01]} Bh5 {[%emt 0:01:32]} 18. Nf5 {[%emt 0:00:37]} Nb6 {[%emt 0:01:35]} 19. b5 {[%emt 0:01:20]} axb5 {[%emt 0:00:05]} 20. axb5 {[%emt 0:00:02]} Nb8 {[%emt 0:00:02]} 21. Be3 {[%emt 0:00:09]} N8d7 {[%emt 0:00:12]} 22. Ng3 {[%emt 0:00:24]} Bg6 {[%emt 0:00:05]} 23. d4 {[%emt 0:00:12]} Bf6 {[%emt 0:00:19]} 24. Bb3 {[%emt 0:00:43]} h6 {[%emt 0:01:42]} 25. Rxa8 {[%emt 0:00:43]} Qxa8 {[%emt 0:00:08]} 26. dxe5 {[%emt 0:00:03]} dxe5 {[%emt 0:00:04]} 27. Qd6 {[%emt 0:00:22]} Qd8 {[%emt 0:01:33]} 28. Rd1 {[%emt 0:00:03]} Re8 {[%emt 0:01:22]} 29. Bxb6 {[%emt 0:00:30]} Nxb6 {[%emt 0:00:01]} 30. Qxd8 {[%emt 0:00:01]} Bxd8 {[%emt 0:00:22]} 31. h4 {[%emt 0:00:51]} h5 {[%emt 0:01:43]} 32. Nxe5 {[%emt 0:00:37]} Rxe5 {[%emt 0:00:01]} 33. Rxd8+ {[%emt 0:00:01]} Kh7 {[%emt 0:00:01]} 34. Bd5 {[%emt 0:00:15]} Nxd5 {[%emt 0:00:23]} 35. Rxd5 {[%emt 0:00:11]} Re7 {[%emt 0:00:07]} 36. f3 {[%emt 0:00:05]} Kh6 {[%emt 0:01:03]} 37. Kf2 {[%emt 0:00:06]} Rc7 {[%emt 0:00:15]} 38. Ke3 {[%emt 0:00:21]} f6 {[%emt 0:00:37]} 39. Nf5+ {[%emt 0:00:55]} Kh7 {[%emt 0:01:01]} 40. Nd6 {[%emt 0:00:06]} b6 {[%emt 0:00:06]} 41. g4 {[%emt 0:00:20]} Kh6 {[%emt 0:00:31]} 42. g5+ {[%emt 0:00:24]} fxg5 {[%emt 0:00:03]} 43. hxg5+ {[%emt 0:00:07]} Kh7 {[%emt 0:00:04]} 44. f4 {[%emt 0:00:02]} h4 {[%emt 0:00:06]} 45. f5 {[%emt 0:00:03]} Bh5 {[%emt 0:00:13]} 46. g6+ {[%emt 0:00:04]} Bxg6 {[%emt 0:00:09]} 47. fxg6+ {[%emt 0:00:01]} Kxg6 {[%emt 0:00:01]} 48. Nf5 {[%emt 0:00:04]} h3 {[%emt 0:00:02]} 49. Rd2 {[%emt 0:00:17]} Kg5 {[%emt 0:00:06]} 50. Nd4 {[%emt 0:00:10]} Kh4 {[%emt 0:00:11]} 51. e5 {[%emt 0:00:11]} g5 {[%emt 0:00:07]} 52. e6 {[%emt 0:00:07]} g4 {[%emt 0:00:01]} 53. Kf4 {[%emt 0:00:05]} Kh5 {[%emt 0:00:22]} 54. Re2 {[%emt 0:00:08]} Kg6 {[%emt 0:00:45]} 55. e7 {[%emt 0:00:02]} 1-0

[Event "8th Holuj-Radzikowska Rapid 2018"]
[Site "Wroclaw"]
[Date "2018.12.10"]
[Round "3"]
[White "Skripchenko, Almira"]
[Black "Kulon, Klaudia"]
[Result "1-0"]
[ECO "C48"]
[WhiteElo "2408"]
[BlackElo "2333"]
[Annotator "RC"]
[PlyCount "117"]
[EventDate "2018.11.26"]
[EventType "schev"]
[EventCountry "POL"]
[SourceTitle "playchess.com"]
[Source "ChessBase"]
[SourceQuality "1"]
[WhiteTeam "World"]
[BlackTeam "Poland"]
[BlackTeamCountry "POL"]
[TimeControl "900+10"]

1. e4 {[%emt 0:00:00]} e5 {[%emt 0:00:00]} 2. Nf3 {[%emt 0:00:00]} Nc6 {[%emt 0:00:00]} 3. Nc3 {[%emt 0:00:00]} Nf6 {[%emt 0:00:00]} 4. Bb5 {[%emt 0:00:03]} Bd6 {[%emt 0:00:00]} 5. a3 {[%emt 0:00:18]} O-O {[%emt 0:00:04]} 6. d3 {[%emt 0:00:02]} h6 {[%emt 0:00:03]} 7. g4 {[%emt 0:01:51]} Nxg4 {[%emt 0:01:51]} 8. Rg1 {[%emt 0:00:01]} Nxf2 {[%emt 0:00:02]} 9. Kxf2 {[%emt 0:00:05]} Bc5+ {[%emt 0:00:01]} 10. Be3 {[%emt 0:00:18]} Nd4 {[%emt 0:00:01]} 11. b4 {[%emt 0:02:21]} Bb6 {[%emt 0:00:15]} 12. Bxd4 {[%emt 0:00:58]} Bxd4+ {[%emt 0:00:57]} 13. Nxd4 {[%emt 0:00:03]} exd4 {[%emt 0:00:02]} 14. Ne2 {[%emt 0:00:20]} Qh4+ {[%emt 0:00:06]} 15. Rg3 {[%emt 0:01:38]} f5 {[%emt 0:00:06]} 16. Bc4+ {[%emt 0:01:12]} Kh8 {[%emt 0:00:09]} 17. exf5 {[%emt 0:01:17]} d5 {[%emt 0:00:48]} 18. Bxd5 {[%emt 0:00:24]} Qxh2+ {[%emt 0:00:54]} 19. Ke1 {[%emt 0:00:10]} Bxf5 {[%emt 0:00:19]} 20. Kd2 {[%emt 0:00:28]} Rae8 {[%emt 0:00:07]} 21. Rg2 {[%emt 0:00:12]} Qe5 {[%emt 0:00:07]} 22. Be4 {[%emt 0:00:56]} Bxe4 {[%emt 0:00:04]} 23. dxe4 {[%emt 0:00:02]} Qxe4 {[%emt 0:00:05]} 24. Qg1 {[%emt 0:00:01]} Rf3 {[%emt 0:03:58]} 25. Qxd4 {[%emt 0:00:54]} Qe7 {[%emt 0:00:01]} 26. Kc1 {[%emt 0:01:34]} Rf6 {[%emt 0:03:23]} 27. Nc3 {[%emt 0:01:11]} Rd8 {[%emt 0:00:44]} 28. Qc5 {[%emt 0:01:18]} Qf7 {[%emt 0:00:20]} 29. Kb2 {[%emt 0:00:24]} Rc6 {[%emt 0:00:02]} 30. Qe5 {[%emt 0:00:05]} Re8 {[%emt 0:00:27]} 31. Qd4 {[%emt 0:00:03]} Rd6 {[%emt 0:00:57]} 32. Qf2 {[%emt 0:00:21]} Qc4 {[%emt 0:00:03]} 33. Re1 {[%emt 0:00:32]} Rxe1 {[%emt 0:00:50]} 34. Qxe1 {[%emt 0:00:01]} a5 {[%emt 0:00:01]} 35. Qe5 {[%emt 0:00:15]} Qf7 {[%emt 0:00:13]} 36. Qxa5 {[%emt 0:00:02]} Qf6 {[%emt 0:00:13]} 37. Qa8+ {[%emt 0:00:11]} Kh7 {[%emt 0:00:02]} 38. Qxb7 {[%emt 0:00:01]} Rc6 {[%emt 0:00:06]} 39. Rg3 {[%emt 0:00:06]} h5 {[%emt 0:00:08]} 40. b5 {[%emt 0:00:08]} Rc5 {[%emt 0:00:10]} 41. Qe4+ {[%emt 0:00:03]} g6 {[%emt 0:00:02]} 42. a4 {[%emt 0:00:13]} Rf5 {[%emt 0:00:13]} 43. Rd3 {[%emt 0:00:09]} h4 {[%emt 0:00:12]} 44. Kb3 {[%emt 0:00:48]} Kh6 {[%emt 0:00:12]} 45. Nd5 {[%emt 0:00:17]} Qa1 {[%emt 0:00:20]} 46. Qxh4+ {[%emt 0:00:04]} Rh5 {[%emt 0:00:18]} 47. Qf4+ {[%emt 0:00:01]} Kg7 {[%emt 0:00:07]} 48. Nc3 {[%emt 0:00:04]} Rf5 {[%emt 0:00:16]} 49. Rd7+ {[%emt 0:00:01]} Kf6 {[%emt 0:00:02]} 50. Qh4+ {[%emt 0:00:26]} g5 {[%emt 0:00:07]} 51. Qd4+ {[%emt 0:00:10]} Kg6 {[%emt 0:00:02]} 52. Rg7+ {[%emt 0:00:10]} Kh6 {[%emt 0:00:02]} 53. Rg8 {[%emt 0:00:02]} Kh5 {[%emt 0:00:08]} 54. Rh8+ {[%emt 0:00:24]} Kg6 {[%emt 0:00:01]} 55. Qd7 {[%emt 0:00:55]} Rf4 {[%emt 0:00:31]} 56. Qh7+ {[%emt 0:00:08]} Kf6 {[%emt 0:00:01]} 57. Rf8+ {[%emt 0:00:04]} Ke5 {[%emt 0:00:01]} 58. Qe7+ {[%emt 0:00:04]} Kd4 {[%emt 0:00:03]} 59. Rd8# {[%emt 0:00:03]} 1-0

[Event "8th Holuj-Radzikowska Rapid 2018"]
[Site "Wroclaw"]
[Date "2018.12.11"]
[Round "8"]
[White "Kulon, Klaudia"]
[Black "Skripchenko, Almira"]
[Result "1/2-1/2"]
[ECO "A36"]
[WhiteElo "2333"]
[BlackElo "2408"]
[Annotator "NA RC"]
[PlyCount "52"]
[EventDate "2018.11.26"]
[EventType "schev"]
[EventCountry "POL"]
[SourceTitle "playchess.com"]
[Source "ChessBase"]
[SourceQuality "1"]
[WhiteTeam "Poland"]
[BlackTeam "World"]
[WhiteTeamCountry "POL"]
[TimeControl "900+10"]

1. c4 {[%emt 0:00:00]} c5 {[%emt 0:00:00]} 2. g3 {[%emt 0:00:00]} Nc6 {[%emt 0:00:00]} 3. Bg2 {[%emt 0:00:00]} g6 {[%emt 0:00:00]} 4. Nc3 {[%emt 0:00:00]} Bg7 {[%emt 0:00:00]} 5. e3 {[%emt 0:00:00]} d6 {[%emt 0:00:12]} 6. Nge2 {[%emt 0:00:00]} e5 {[%emt 0:00:08]} 7. O-O {[%emt 0:00:00]} Nge7 {[%emt 0:00:04]} 8. d3 {[%emt 0:00:03]} O-O {[%emt 0:00:07]} 9. h3 {[%emt 0:00:01]} Be6 {[%emt 0:00:14]} 10. Nd5 {[%emt 0:00:05]} Rb8 {[%emt 0:00:09]} 11. Nec3 {[%emt 0:00:04]} f5 {[%emt 0:00:23]} 12. a3 {[%emt 0:00:07]} Kh8 {[%emt 0:00:26]} 13. b4 {[%emt 0:00:29]} Qd7 {[%emt 0:00:16]} 14. b5 {[%emt 0:00:10]} Nd8 {[%emt 0:00:15]} 15. a4 {[%emt 0:00:33]} f4 {[%emt 0:01:07]} 16. Nxe7 {[%emt 0:01:18]} Qxe7 {[%emt 0:00:02]} 17. Ne4 {[%emt 0:00:04]} Qd7 {[%emt 0:00:22]} 18. Kh2 {[%emt 0:00:11]} fxg3+ {[%emt 0:01:58]} 19. fxg3 {[%emt 0:00:03]} Rxf1 {[%emt 0:00:15]} 20. Qxf1 {[%emt 0:00:02]} Nf7 {[%emt 0:00:03]} 21. Bb2 {[%emt 0:00:28]} Rf8 {[%emt 0:00:08]} 22. Qe2 {[%emt 0:00:05]} Qe7 {[%emt 0:00:22]} 23. Rf1 {[%emt 0:00:36]} Kg8 {[%emt 0:00:37]} 24. a5 {[%emt 0:00:19]} h5 {[%emt 0:00:32]} 25. Bc3 {[%emt 0:01:11]} Bf5 {[%emt 0:00:21]} 26. Bb2 {[%emt 0:00:11]} Qd7 {[%emt 0:00:10]} 1/2-1/2

[Event "8th Holuj-Radzikowska Rapid 2018"]
[Site "Wroclaw"]
[Date "2018.12.11"]
[Round "9"]
[White "Szczepkowska, Karina"]
[Black "Paehtz, Elisabeth"]
[Result "0-1"]
[ECO "B06"]
[WhiteElo "2408"]
[BlackElo "2487"]
[Annotator "RC"]
[PlyCount "80"]
[EventDate "2018.11.26"]
[EventType "schev"]
[EventCountry "POL"]
[SourceTitle "playchess.com"]
[Source "ChessBase"]
[SourceQuality "1"]
[WhiteTeam "Poland"]
[BlackTeam "World"]
[WhiteTeamCountry "POL"]
[TimeControl "900+10"]

1. d4 {[%emt 0:00:00]} d6 {[%emt 0:00:00]} 2. e4 {[%emt 0:00:00]} g6 {[%emt 0:00:00]} 3. Nf3 {[%emt 0:00:07]} Bg7 {[%emt 0:00:00]} 4. c3 {[%emt 0:00:02]} Nf6 {[%emt 0:00:00]} 5. Bd3 {[%emt 0:00:14]} Nc6 {[%emt 0:00:00]} 6. h3 {[%emt 0:00:09]} e5 {[%emt 0:00:04]} 7. dxe5 {[%emt 0:00:54]} dxe5 {[%emt 0:00:07]} 8. Be3 {[%emt 0:00:03]} O-O {[%emt 0:00:07]} 9. Na3 {[%emt 0:00:07]} Qe7 {[%emt 0:00:10]} 10. Qc2 {[%emt 0:00:38]} b6 {[%emt 0:00:23]} 11. Nc4 {[%emt 0:00:35]} Bb7 {[%emt 0:00:13]} 12. O-O {[%emt 0:00:11]} Nh5 {[%emt 0:00:06]} 13. Bg5 {[%emt 0:00:26]} f6 {[%emt 0:00:16]} 14. Bd2 {[%emt 0:00:32]} Nf4 {[%emt 0:00:14]} 15. Ne3 {[%emt 0:00:42]} Kh8 {[%emt 0:00:12]} 16. Nd5 {[%emt 0:00:32]} Nxd5 {[%emt 0:00:02]} 17. exd5 {[%emt 0:00:01]} Nb8 {[%emt 0:00:13]} 18. c4 {[%emt 0:00:07]} f5 {[%emt 0:01:48]} 19. Bg5 {[%emt 0:02:46]} Qd6 {[%emt 0:00:28]} 20. Nd2 {[%emt 0:00:26]} Nd7 {[%emt 0:00:09]} 21. f4 {[%emt 0:01:10]} e4 {[%emt 0:00:24]} 22. Be2 {[%emt 0:01:21]} c6 {[%emt 0:00:37]} 23. dxc6 {[%emt 0:00:17]} Bxc6 {[%emt 0:00:09]} 24. Nb3 {[%emt 0:00:06]} Ba4 {[%emt 0:01:08]} 25. Rad1 {[%emt 0:00:18]} Qc7 {[%emt 0:00:07]} 26. Rd2 {[%emt 0:00:51]} Nc5 {[%emt 0:00:12]} 27. Rfd1 {[%emt 0:00:15]} Ne6 {[%emt 0:00:08]} 28. Rd6 {[%emt 0:00:44]} Rae8 {[%emt 0:01:09]} 29. Qd2 {[%emt 0:02:58]} Nxg5 {[%emt 0:00:37]} 30. fxg5 {[%emt 0:00:04]} Be5 {[%emt 0:00:05]} 31. Rd5 {[%emt 0:00:33]} Bc6 {[%emt 0:00:02]} 32. Rd7 {[%emt 0:00:37]} Bxd7 {[%emt 0:00:03]} 33. Qxd7 {[%emt 0:00:01]} Qxd7 {[%emt 0:00:55]} 34. Rxd7 {[%emt 0:00:04]} a5 {[%emt 0:00:18]} 35. a4 {[%emt 0:00:19]} Rd8 {[%emt 0:01:01]} 36. Re7 {[%emt 0:00:08]} Bxb2 {[%emt 0:00:18]} 37. g4 {[%emt 0:00:19]} Rde8 {[%emt 0:00:14]} 38. Rb7 {[%emt 0:00:24]} f4 {[%emt 0:00:14]} 39. Rxb6 {[%emt 0:00:01]} f3 {[%emt 0:00:03]} 40. Bf1 {[%emt 0:00:02]} e3 {[%emt 0:00:13]} 0-1